bitfinex/quotes_BTCUSD_20250628
["timestamp","ask_amount","ask_price","bid_price","bid_amount"]
[1751123925063,0.01954797,107270.0,107260.0,0.76041828]
[1751123925488,0.0288698,107270.0,107260.0,0.76041828]
[1751123925908,0.01954797,107270.0,107260.0,0.76041828]
[1751123927169,0.02886971,107270.0,107260.0,0.76041828]
[1751123928321,0.01954797,107270.0,107260.0,0.76041828]
[1751123931974,0.0288698,107270.0,107260.0,0.76041828]
[1751123932182,0.01954797,107270.0,107260.0,0.76041828]
[1751123944045,0.02886971,107270.0,107260.0,0.76041828]
[1751123944634,0.04526971,107270.0,107260.0,0.76041828]
[1751123953285,0.03594797,107270.0,107260.0,0.76041828]
[1751123957097,0.03594797,107270.0,107260.0,0.39466553]
[1751123957293,0.03594797,107270.0,107260.0,0.76041828]
[1751123958851,0.04526971,107270.0,107260.0,0.76041828]
[1751123960243,0.03594797,107270.0,107260.0,0.76041828]
[1751123961120,0.03594797,107270.0,107260.0,0.39450553]
[1751123961339,0.05459181,107270.0,107260.0,0.76025828]
[1751123961552,0.0452698,107270.0,107260.0,0.76025828]
[1751123961767,0.0452698,107270.0,107260.0,0.39450553]
[1751123961980,0.0452698,107270.0,107260.0,0.76025828]
[1751123963880,0.05459181,107270.0,107260.0,0.76025828]
[1751123964087,0.0452698,107270.0,107260.0,0.76025828]
[1751123964318,0.62259005,107270.0,107260.0,0.20777482]
[1751123964531,0.96969957,107270.0,107260.0,0.001]
[1751123964729,1.06245965,107270.0,107260.0,0.001]
[1751123964934,1.21193965,107270.0,107260.0,0.001]
[1751123965143,1.23993365,107270.0,107260.0,0.001]
[1751123965350,1.64993365,107270.0,107260.0,0.001]
[1751123965585,1.74269373,107270.0,107260.0,0.001]
[1751123967768,1.64993365,107270.0,107260.0,0.001]
[1751123978970,1.64993365,107270.0,107260.0,0.002]
[1751123979429,1.6644745,107270.0,107260.0,0.002]
[1751123989039,1.5149945,107270.0,107260.0,0.002]
[1751123989241,0.88638815,107270.0,107260.0,0.002]
[1751123989438,1.2521409,107270.0,107260.0,0.002]
[1751123990273,1.2688209,107270.0,107260.0,0.01941863]
[1751123991086,1.63457365,107270.0,107260.0,0.01941863]
[1751123991286,1.2688209,107270.0,107260.0,0.01941863]
[1751123992251,1.36158098,107270.0,107260.0,0.01941863]
[1751123993324,1.74293373,107270.0,107260.0,0.01941863]
[1751123993535,1.74293373,107270.0,107260.0,0.01944478]
[1751123994977,1.74293373,107270.0,107260.0,0.01844478]
[1751123995295,1.37718098,107270.0,107260.0,0.02044478]
[1751124001606,1.74293373,107270.0,107260.0,0.02044478]
[1751124004709,1.65017365,107270.0,107260.0,0.02044478]
[1751124013070,1.65017365,107270.0,107260.0,0.003]
[1751124013484,1.67254225,107270.0,107260.0,0.003]
[1751124029609,1.65694225,107270.0,107260.0,0.003]
[1751124031865,0.77571675,107270.0,107260.0,0.003]
[1751124032068,1.64026225,107270.0,107260.0,0.003]
[1751124032270,1.71921865,107270.0,107260.0,0.003]
[1751124040756,1.64026225,107270.0,107260.0,0.003]
[1751124043526,1.65556225,107270.0,107260.0,0.003]
[1751124046133,1.64026225,107270.0,107260.0,0.003]
[1751124049942,1.64026434,107270.0,107260.0,0.003]
[1751124071983,1.61227034,107270.0,107260.0,0.003]
[1751124077558,1.62787034,107270.0,107260.0,0.003]
[1751124079438,1.61227034,107270.0,107260.0,0.003]
[1751124090602,1.62807034,107270.0,107260.0,0.003]
[1751124095535,1.64467034,107270.0,107260.0,0.003]
[1751124097125,1.62807034,107270.0,107260.0,0.003]
[1751124098192,1.65453113,107270.0,107260.0,0.003]
[1751124098577,1.67113113,107270.0,107260.0,0.003]
[1751124099195,1.69912713,107270.0,107260.0,0.003]
[1751124099621,1.67113113,107270.0,107260.0,0.003]
[1751124099977,1.69912713,107270.0,107260.0,0.003]
[1751124100216,1.67113113,107270.0,107260.0,0.003]
[1751124100419,1.69912713,107270.0,107260.0,0.003]
[1751124100814,1.67113113,107270.0,107260.0,0.003]
[1751124101026,1.69912713,107270.0,107260.0,0.003]
[1751124101239,1.67113113,107270.0,107260.0,0.003]
[1751124102210,1.69912713,107270.0,107260.0,0.003]
[1751124105679,1.67266634,107270.0,107260.0,0.003]
[1751124105900,1.65606634,107270.0,107260.0,0.003]
[1751124119700,1.64026634,107270.0,107260.0,0.003]
[1751124136613,0.90876084,107270.0,107260.0,0.003]
[1751124136825,1.64026634,107270.0,107260.0,0.003]
[1751124143561,0.90876084,107270.0,107260.0,0.003]
[1751124143778,1.64030634,107270.0,107260.0,0.003]
[1751124144928,1.73306642,107270.0,107260.0,0.003]
[1751124146450,1.64030634,107270.0,107260.0,0.003]
[1751124170782,1.65690634,107270.0,107260.0,0.003]
[1751124172201,1.65690977,107270.0,107260.0,0.003]
[1751124175274,1.67260977,107270.0,107260.0,0.003]
[1751124182097,1.65690977,107270.0,107260.0,0.003]
[1751124186701,1.64030977,107270.0,107260.0,0.003]
[1751124188980,0.90880427,107270.0,107260.0,0.003]
[1751124189172,1.64030977,107270.0,107260.0,0.003]
[1751124190539,1.64030977,107270.0,107260.0,0.0345]
[1751124192781,1.64030977,107270.0,107260.0,0.0193]
[1751124193779,1.64030977,107270.0,107260.0,0.003]
[1751124198861,1.49062977,107270.0,107260.0,0.003]
[1751124199040,1.64046977,107270.0,107260.0,0.035]
[1751124200394,1.61809565,107270.0,107260.0,0.035]
[1751124202872,1.61809565,107270.0,107260.0,0.003]
[1751124203311,1.70575947,107270.0,107260.0,0.003]
[1751124204055,1.61809565,107270.0,107260.0,0.0349]
[1751124204631,1.61809565,107270.0,107260.0,0.003]
[1751124205441,1.61809565,107270.0,107260.0,0.0194]
[1751124206798,1.61809565,107270.0,107260.0,0.003]
[1751124215691,1.61809565,107270.0,107260.0,0.0339]
[1751124223287,1.61809565,107270.0,107260.0,0.003]
[1751124264614,0.88659015,107270.0,107260.0,0.003]
[1751124264818,1.61809565,107270.0,107260.0,0.003]
[1751124267284,1.46825565,107270.0,107260.0,0.003]
[1751124267507,1.58993965,107270.0,107260.0,0.0352]
[1751124269689,1.58993965,107270.0,107260.0,0.003]
[1751124282519,0.85843415,107270.0,107260.0,0.003]
[1751124282727,1.2241869,107270.0,107260.0,0.003]
[1751124283398,1.58993965,107270.0,107260.0,0.003]
[1751124299819,0.85843415,107270.0,107260.0,0.003]
[1751124300063,1.58993965,107270.0,107260.0,0.003]
[1751124300307,1.2241869,107270.0,107260.0,0.003]
[1751124300552,1.58993965,107270.0,107260.0,0.003]
[1751124325621,1.2241869,107270.0,107260.0,0.003]
[1751124329566,1.58993965,107270.0,107260.0,0.003]
[1751124345258,1.61793365,107270.0,107260.0,0.003]
[1751124370809,1.61789365,107270.0,107260.0,0.003]
[1751124372023,1.63419365,107270.0,107260.0,0.003]
[1751124382478,1.65019365,107270.0,107260.0,0.003]
[1751124390347,1.63419365,107270.0,107260.0,0.003]
[1751124395133,1.64989365,107270.0,107260.0,0.003]
[1751124399764,1.63419365,107270.0,107260.0,0.003]
[1751124405689,0.90268815,107270.0,107260.0,0.003]
[1751124405897,1.63419365,107270.0,107260.0,0.003]
[1751124413790,1.61789365,107270.0,107260.0,0.003]
[1751124433811,1.67842631,107270.0,107260.0,0.003]
[1751124434812,1.61789365,107270.0,107260.0,0.003]
[1751124435877,1.63289365,107270.0,107260.0,0.003]
[1751124443671,1.64859365,107270.0,107260.0,0.003]
[1751124452599,1.63289365,107270.0,107260.0,0.003]
[1751124490186,1.61789365,107270.0,107260.0,0.003]
[1751124494870,0.88638815,107270.0,107260.0,0.003]
[1751124495082,1.61789365,107270.0,107260.0,0.003]
[1751124499765,1.54789365,107270.0,107260.0,0.003]
[1751124502926,0.81638815,107270.0,107260.0,0.003]
[1751124503161,1.54789365,107270.0,107260.0,0.003]
[1751124507757,1.51989965,107270.0,107260.0,0.003]
[1751124518505,1.1541469,107270.0,107260.0,0.003]
[1751124521797,0.78839415,107270.0,107260.0,0.003]
[1751124522008,1.1541469,107270.0,107260.0,0.003]
[1751124527525,1.1821409,107270.0,107260.0,0.003]
[1751124528779,0.81638815,107270.0,107260.0,0.003]
[1751124528957,1.1821409,107270.0,107260.0,0.003]
[1751124535423,0.81638815,107270.0,107260.0,0.003]
[1751124535724,1.1821409,107270.0,107260.0,0.003]
[1751124536981,0.81638815,107270.0,107260.0,0.003]
[1751124537228,1.1821409,107270.0,107260.0,0.003]
[1751124540113,0.81638815,107270.0,107260.0,0.003]
[1751124540533,1.1821409,107270.0,107260.0,0.003]
[1751124570321,1.56301365,107270.0,107260.0,0.003]
[1751124570550,1.57881365,107270.0,107260.0,0.003]
[1751124575571,1.67157373,107270.0,107260.0,0.003]
[1751124576000,1.57881365,107270.0,107260.0,0.003]
[1751124580146,1.95910725,107270.0,107260.0,0.003]
[1751124580381,1.98148043,107270.0,107260.0,0.003]
[1751124582283,1.61572768,107270.0,107260.0,0.003]
[1751124584273,1.62227715,107270.0,107260.0,0.003]
[1751124585030,1.71503723,107270.0,107260.0,0.003]
[1751124585244,1.61572768,107270.0,107260.0,0.003]
[1751124601707,1.46616768,107270.0,107260.0,0.003]
[1751124601927,1.61580768,107270.0,107260.0,0.003]
[1751124602586,0.6925009,107270.0,107260.0,0.0343]
[1751124602858,0.8141869,107270.0,107260.0,0.0343]
[1751124603561,1.1541869,107270.0,107260.0,0.0343]
[1751124604821,1.1542269,107270.0,107260.0,0.0343]
[1751124611162,1.1542269,107270.0,107260.0,0.0333]
[1751124611645,1.1542269,107270.0,107260.0,0.0343]
[1751124630390,1.1542269,107270.0,107260.0,0.0188]
[1751124632945,1.1542269,107270.0,107260.0,0.003]
[1751124633372,1.53527965,107270.0,107260.0,0.003]
[1751124640730,1.53527965,107270.0,107260.0,0.001]
[1751124641218,1.53527965,107270.0,107260.0,0.003]
[1751124644900,1.51997965,107270.0,107260.0,0.003]
[1751124660337,0.78847415,107270.0,107260.0,0.003]
[1751124660534,1.51997965,107270.0,107260.0,0.003]
[1751124674654,0.78847415,107270.0,107260.0,0.003]
[1751124674785,1.1541069,107270.0,107260.0,0.0344]
[1751124676814,0.78835415,107270.0,107260.0,0.0344]
[1751124677059,1.1541069,107270.0,107260.0,0.0344]
[1751124678839,1.1541069,107270.0,107260.0,0.003]
[1751124691177,1.51985965,107270.0,107260.0,0.003]
[1751124697938,1.1541069,107270.0,107260.0,0.003]
[1751124700603,1.51985965,107270.0,107260.0,0.003]
[1751124708769,1.54785465,107270.0,107260.0,0.003]
[1751124710058,1.1821019,107270.0,107260.0,0.003]
[1751124720683,1.0325019,107270.0,107260.0,0.003]
[1751124720841,0.6925019,107270.0,107260.0,0.003]
[1751124721045,0.30807642,107270.0,107260.0,0.2203628]
[1751124721321,0.01954866,107270.0,107260.0,0.6047613]
[1751124721468,0.16918814,107270.0,107260.0,0.26764576]
[1751124721672,0.1878325,107270.0,107260.0,0.28629125]
[1751124721872,0.17851023,107270.0,107260.0,0.28529125]
[1751124722051,0.55358516,107270.0,107260.0,0.28529125]
[1751124722271,0.55562516,107270.0,107260.0,0.28529125]
[1751124722872,0.55562516,107270.0,107260.0,0.28329125]
[1751124723080,0.55862516,107270.0,107260.0,0.29261386]
[1751124723272,0.54930298,107270.0,107260.0,0.29261386]
[1751124723680,0.54930298,107270.0,107260.0,0.28329125]
[1751124724378,0.55862525,107270.0,107260.0,0.28329125]
[1751124725145,0.54930298,107270.0,107260.0,0.28329125]
[1751124725319,0.54930298,107270.0,107260.0,0.29261386]
[1751124726218,0.55862516,107270.0,107260.0,0.28329125]
[1751124726866,0.55862516,107270.0,107260.0,0.29261386]
[1751124727208,0.55862516,107270.0,107260.0,0.28329125]
[1751124727415,0.55862516,107270.0,107260.0,0.29261386]
[1751124727671,0.55862516,107270.0,107260.0,0.28329125]
[1751124728470,0.55862516,107270.0,107260.0,0.29261386]
[1751124729074,0.55862516,107270.0,107260.0,0.27396863]
[1751124729354,0.55862516,107270.0,107260.0,0.26464576]
[1751124729562,0.55862516,107270.0,107260.0,0.27396863]
[1751124729769,0.55862516,107270.0,107260.0,0.28329142]
[1751124730223,0.55862516,107270.0,107260.0,0.29261412]
[1751124731170,0.55862516,107270.0,107260.0,0.28329142]
[1751124731809,0.39962298,107270.0,107260.0,0.28329142]
[1751124732035,0.54926298,107270.0,107260.0,0.29261412]
[1751124732683,0.54926298,107270.0,107260.0,0.30193673]
[1751124732865,0.55858525,107270.0,107260.0,0.29261412]
[1751124733517,0.55858525,107270.0,107260.0,0.28329142]
[1751124733699,0.55858525,107270.0,107260.0,0.29261412]
[1751124734351,0.54926298,107270.0,107260.0,0.30193665]
[1751124734562,0.54926298,107270.0,107260.0,0.30193673]
[1751124734986,0.54926298,107270.0,107260.0,0.29261412]
[1751124735177,0.55858525,107270.0,107260.0,0.29261412]
[1751124735619,0.54926298,107270.0,107260.0,0.29261412]
[1751124735861,0.54926298,107270.0,107260.0,0.30193673]
[1751124736032,0.54926298,107270.0,107260.0,0.3019363]
[1751124736386,0.54926298,107270.0,107260.0,0.29261377]
[1751124737828,0.54926298,107270.0,107260.0,0.28329116]
[1751124738033,0.54926298,107270.0,107260.0,0.29261377]
[1751124739646,0.18351015,107270.0,107260.0,0.3019363]
[1751124739937,0.5492629,107270.0,107260.0,0.3019363]
[1751124742529,0.5492629,107270.0,107260.0,0.29261377]
[1751124742886,0.18351015,107270.0,107260.0,0.29261377]
[1751124743088,0.5492629,107270.0,107260.0,0.3019363]
[1751124743288,0.18351015,107270.0,107260.0,0.3019363]
[1751124743915,0.17414814,107270.0,107260.0,0.3019363]
[1751124745204,0.18347015,107270.0,107260.0,0.3019363]
[1751124745410,0.17414814,107270.0,107260.0,0.3019363]
[1751124745937,0.03387015,107270.0,107260.0,0.3019363]
[1751124746974,0.3996229,107270.0,107260.0,0.3019363]
[1751124748029,0.39030089,107270.0,107260.0,0.3019363]
[1751124748565,0.3996229,107270.0,107260.0,0.3019363]
[1751124748764,0.39030089,107270.0,107260.0,0.3019363]
[1751124749366,0.3996229,107270.0,107260.0,0.3019363]
[1751124749589,0.39030089,107270.0,107260.0,0.3019363]
[1751124751230,0.02454814,107270.0,107260.0,0.3019363]
[1751124751452,0.01522631,107270.0,107260.0,0.3019363]
[1751124751681,0.03386989,107270.0,107260.0,0.3019363]
[1751124755655,0.02454797,107270.0,107260.0,0.3019363]
[1751124755860,0.03386989,107270.0,107260.0,0.3019363]
[1751124756284,0.39962264,107270.0,107260.0,0.3019363]
[1751124761304,0.39962255,107270.0,107260.0,0.3019363]
[1751124762883,0.0338698,107270.0,107260.0,0.3019363]
[1751124764910,0.39962255,107270.0,107260.0,0.3019363]
[1751124765158,0.40894456,107270.0,107260.0,0.3019363]
[1751124765330,0.39962264,107270.0,107260.0,0.3019363]
[1751124767211,0.03386989,107270.0,107260.0,0.3019363]
[1751124769183,0.02454797,107270.0,107260.0,0.3019363]
[1751124769322,0.0338698,107270.0,107260.0,0.3019363]
[1751124770211,0.39962255,107270.0,107260.0,0.3019363]
[1751124770611,0.0338698,107270.0,107260.0,0.3019363]
[1751124772475,0.39962255,107270.0,107260.0,0.3019363]
[1751124774998,0.02454797,107270.0,107260.0,0.2710363]
[1751124776130,0.0338698,107270.0,107260.0,0.2710363]
[1751124776537,0.01522631,107270.0,107260.0,0.3024363]
[1751124777616,0.38097906,107270.0,107260.0,0.3024363]
[1751124778982,0.3903008,107270.0,107260.0,0.3024363]
[1751124779594,0.02454805,107270.0,107260.0,0.3024363]
[1751124780500,0.3903008,107270.0,107260.0,0.3024363]
[1751124781973,0.02454805,107270.0,107260.0,0.3024363]
[1751124782290,0.00590474,107270.0,107260.0,0.3024363]
[1751124782497,0.01522622,107270.0,107260.0,0.3024363]
[1751124783123,0.00390474,107270.0,107260.0,0.3024363]
[1751124783470,0.00090474,107270.0,107260.0,0.3024363]
[1751124783669,0.00190474,107270.0,107260.0,0.3024363]
[1751124784003,0.00290474,107270.0,107260.0,0.3024363]
[1751124785103,0.00290474,107270.0,107260.0,0.66818905]
[1751124785770,0.00290474,107270.0,107260.0,0.3024363]
[1751124785985,0.00290474,107270.0,107260.0,0.66818905]
[1751124786415,0.00290474,107270.0,107260.0,0.3024363]
[1751124786620,0.00290474,107270.0,107260.0,0.66818905]
[1751124787519,0.00290474,107270.0,107260.0,0.3024363]
[1751124787743,0.00290474,107270.0,107260.0,0.66818905]
[1751124788893,0.00290474,107270.0,107260.0,0.66778905]
[1751124791217,0.00290474,107270.0,107260.0,0.3020363]
[1751124791616,0.00290474,107270.0,107260.0,0.66778905]
[1751124793010,0.00290474,107270.0,107260.0,0.3020363]
[1751124793226,0.00290474,107270.0,107260.0,0.66778905]
[1751124795861,0.00290474,107270.0,107260.0,0.3020363]
[1751124797898,0.00290474,107270.0,107260.0,0.2865363]
[1751124800074,0.00290474,107270.0,107260.0,0.2710363]
[1751124803192,0.00290474,107270.0,107260.0,0.63678905]
[1751124813824,0.01222622,107270.0,107260.0,0.63678905]
[1751124814035,0.00290474,107270.0,107260.0,0.63678905]
[1751124817511,0.00057418,107270.0,107260.0,0.63678905]
[1751124824610,0.00989575,107270.0,107260.0,0.63678905]
[1751124825391,0.00057418,107270.0,107260.0,0.63678905]
[1751124840876,0.00057418,107270.0,107260.0,0.2710363]
[1751124841085,0.00057418,107270.0,107260.0,0.63678905]
[1751124848050,0.00057418,107270.0,107260.0,0.2710363]
[1751124848230,0.00057418,107270.0,107260.0,0.63678905]
[1751124851823,0.00057418,107270.0,107260.0,0.65258905]
[1751124854767,0.00057418,107270.0,107260.0,0.63678905]
[1751124859577,0.00057418,107270.0,107260.0,0.2710363]
[1751124859755,0.00057418,107270.0,107260.0,0.63678905]
[1751124864692,0.00989575,107270.0,107260.0,0.2710363]
[1751124864896,0.00057418,107270.0,107260.0,0.63678905]
[1751124865351,0.00989584,107270.0,107260.0,0.63678905]
[1751124866709,0.00989584,107270.0,107260.0,0.2710363]
[1751124866916,0.00989575,107270.0,107260.0,0.63678905]
[1751124867946,0.01921741,107270.0,107260.0,0.63678905]
[1751124868129,0.00989575,107270.0,107260.0,0.63678905]
[1751124869599,0.00989566,107270.0,107260.0,0.63678905]
[1751124870426,0.00989566,107270.0,107260.0,0.2710363]
[1751124870603,0.02599566,107270.0,107260.0,0.63678905]
[1751124871021,0.03531732,107270.0,107260.0,0.63678905]
[1751124871226,0.02599566,107270.0,107260.0,0.63678905]
[1751124871569,0.03531723,107270.0,107260.0,0.63678905]
[1751124872958,0.04463889,107270.0,107260.0,0.63678905]
[1751124876299,0.03531723,107270.0,107260.0,0.63678905]
[1751124879061,0.04463906,107270.0,107260.0,0.63678905]
[1751124879271,0.03531732,107270.0,107260.0,0.63678905]
[1751124880987,0.04463906,107270.0,107260.0,0.63678905]
[1751124881400,0.03531732,107270.0,107260.0,0.63678905]
[1751124885346,0.04463906,107270.0,107260.0,0.63678905]
[1751124889296,0.05396089,107270.0,107260.0,0.63678905]
[1751124890329,0.01921732,107270.0,107260.0,0.63678905]
[1751124891522,0.02853906,107270.0,107260.0,0.63678905]
[1751124891707,0.01921732,107270.0,107260.0,0.63678905]
[1751124893572,0.02853915,107270.0,107260.0,0.63678905]
[1751124893783,0.01921732,107270.0,107260.0,0.63678905]
[1751124894999,0.02853915,107270.0,107260.0,0.63678905]
[1751124895200,0.01921732,107270.0,107260.0,0.63678905]
[1751124896123,0.02853906,107270.0,107260.0,0.63678905]
[1751124897121,0.03786107,107270.0,107260.0,0.2710363]
[1751124897318,0.03786098,107270.0,107260.0,0.63678905]
[1751124897844,0.02853906,107270.0,107260.0,0.63678905]
[1751124898575,0.01921732,107270.0,107260.0,0.63678905]
[1751124900476,0.02853915,107270.0,107260.0,0.63678905]
[1751124900892,0.02853915,107270.0,107260.0,0.2710363]
[1751124901097,0.02853915,107270.0,107260.0,0.63678905]
[1751124901516,0.01921732,107270.0,107260.0,0.63678905]
[1751124901724,0.02853906,107270.0,107260.0,0.63678905]
[1751124907574,0.01921732,107270.0,107260.0,0.63678905]
[1751124910771,0.02853915,107270.0,107260.0,0.63678905]
[1751124910981,0.01921732,107270.0,107260.0,0.63678905]
[1751124917790,0.02853915,107270.0,107260.0,0.63678905]
[1751124917977,0.01921732,107270.0,107260.0,0.63678905]
[1751124918195,0.02853906,107270.0,107260.0,0.63678905]
[1751124920760,0.03786098,107270.0,107260.0,0.63678905]
[1751124920975,0.02853906,107270.0,107260.0,0.63678905]
[1751124922786,0.03786098,107270.0,107260.0,0.63678905]
[1751124922978,0.02853906,107270.0,107260.0,0.63678905]
[1751124928111,0.02853906,107270.0,107260.0,0.78630905]
[1751124928702,0.03786098,107270.0,107260.0,0.78630905]
[1751124929177,0.02853906,107270.0,107260.0,0.78630905]
[1751124933851,0.03786098,107270.0,107260.0,0.78630905]
[1751124934067,0.02853906,107270.0,107260.0,0.78630905]
[1751124936851,0.03786089,107270.0,107260.0,0.78630905]
[1751124937047,0.00057418,107270.0,107260.0,0.78630905]
[1751124937282,0.00989575,107270.0,107260.0,0.81780905]
[1751124937462,0.00057418,107270.0,107260.0,0.81780905]
[1751124937711,0.00057418,107270.0,107260.0,0.4520563]
[1751124937919,0.42564453,107280.0,107270.0,0.21441117]
[1751124938122,0.42564453,107280.0,107270.0,0.25233117]
[1751124939258,0.42664453,107280.0,107270.0,0.25233117]
[1751124948893,0.43596593,107280.0,107270.0,0.25233117]
[1751124954774,0.42664453,107280.0,107270.0,0.25233117]
[1751124959129,0.43596593,107280.0,107270.0,0.25233117]
[1751124960951,0.42664453,107280.0,107270.0,0.25233117]
[1751124961153,0.06089178,107280.0,107270.0,0.25233117]
[1751124961362,0.03587047,107280.0,107270.0,0.25233117]
[1751124961573,0.41094444,107280.0,107270.0,0.25233117]
[1751124963788,0.42026584,107280.0,107270.0,0.25233117]
[1751124964006,0.40496584,107280.0,107270.0,0.25233117]
[1751124965054,0.39564444,107280.0,107270.0,0.25233117]
[1751124965839,0.02989169,107280.0,107270.0,0.61808392]
[1751124966222,0.39564444,107280.0,107270.0,0.25233117]
[1751124974278,0.02989169,107280.0,107270.0,0.25233117]
[1751124975721,0.39564444,107280.0,107270.0,0.25233117]
[1751124976094,0.40496575,107280.0,107270.0,0.25233117]
[1751124982173,0.39564444,107280.0,107270.0,0.25233117]
[1751124982539,0.38632322,107280.0,107270.0,0.25233117]
[1751124983187,0.02057047,107280.0,107270.0,0.25233117]
[1751124983773,0.02989109,107280.0,107270.0,0.25233117]
[1751124983978,0.029891,107280.0,107270.0,0.25233117]
[1751124984411,0.02056995,107280.0,107270.0,0.25233117]
[1751124984606,0.029891,107280.0,107270.0,0.25233117]
[1751124985010,0.02056995,107280.0,107270.0,0.25233117]
[1751124985225,0.02989091,107280.0,107270.0,0.25233117]
[1751124990297,0.03921205,107280.0,107270.0,0.25233117]
[1751124990481,0.02989091,107280.0,107270.0,0.25233117]
[1751124994502,0.02056995,107280.0,107270.0,0.25233117]
[1751124995570,0.02989091,107280.0,107270.0,0.25233117]
[1751124996868,0.02056995,107280.0,107270.0,0.25233117]
[1751124997419,0.02989091,107280.0,107270.0,0.25233117]
[1751124999397,0.02056995,107280.0,107270.0,0.25233117]
[1751125000907,0.02989082,107280.0,107270.0,0.25233117]
[1751125001132,0.03921187,107280.0,107270.0,0.25233117]
[1751125001966,0.02989082,107280.0,107270.0,0.25233117]
[1751125002437,0.03921204,107280.0,107270.0,0.25233117]
[1751125003845,0.05531204,107280.0,107270.0,0.25233117]
[1751125004676,0.4303861,107280.0,107270.0,0.25233117]
[1751125010162,0.43038688,107280.0,107270.0,0.25233134]
[1751125010373,0.43038688,107280.0,107270.0,0.26165308]
[1751125011388,0.43038688,107280.0,107270.0,0.27097474]
[1751125011561,0.42106548,107280.0,107270.0,0.27097474]
[1751125012174,0.42106548,107280.0,107270.0,0.26165308]
[1751125012633,0.44658688,107280.0,107270.0,0.26165308]
[1751125016058,0.43726609,107280.0,107270.0,0.26165308]
[1751125017489,0.43726609,107280.0,107270.0,0.25233134]
[1751125020714,0.43726609,107280.0,107270.0,0.26165308]
[1751125023065,0.61437316,107280.0,107270.0,0.24300951]
[1751125024268,0.61437316,107280.0,107270.0,0.25233134]
[1751125025315,0.61437316,107280.0,107270.0,0.24300951]
[1751125026503,0.61437316,107280.0,107270.0,0.25233134]
[1751125029070,0.41862373,107280.0,107270.0,0.25233134]
[1751125029274,0.41862338,107280.0,107270.0,0.26165308]
[1751125030740,0.40242338,107280.0,107270.0,0.26165308]
[1751125032750,0.40242338,107280.0,107270.0,0.25233134]
[1751125032921,0.40242338,107280.0,107270.0,0.26165308]
[1751125033990,0.41174478,107280.0,107270.0,0.25233134]
[1751125034194,0.40242338,107280.0,107270.0,0.25233134]
[1751125034399,0.40242338,107280.0,107270.0,0.26165308]
[1751125034812,0.40242338,107280.0,107270.0,0.25233134]
[1751125035530,0.40242338,107280.0,107270.0,0.26165308]
[1751125036234,0.40242338,107280.0,107270.0,0.25233134]
[1751125036435,0.41174478,107280.0,107270.0,0.25233134]
[1751125036649,0.40242338,107280.0,107270.0,0.25233134]
[1751125037262,0.41174478,107280.0,107270.0,0.25233134]
[1751125037678,0.41174478,107280.0,107270.0,0.24300951]
[1751125037889,0.41174478,107280.0,107270.0,0.25233134]
[1751125038952,0.59817281,107280.0,107270.0,0.22436541]
[1751125039172,0.61457281,107280.0,107270.0,0.23368759]
[1751125039383,0.61457281,107280.0,107270.0,0.23368768]
[1751125039805,0.61457281,107280.0,107270.0,0.24300977]
[1751125042376,0.61457281,107280.0,107270.0,0.23368768]
[1751125042589,0.61457281,107280.0,107270.0,0.24300986]
[1751125043109,0.23061152,107270.0,107260.0,0.23370594]
[1751125043321,0.61276427,107270.0,107260.0,0.2523516]
[1751125043564,0.76228427,107270.0,107260.0,0.24302881]
[1751125044823,0.76228427,107270.0,107260.0,0.24402881]
[1751125045030,0.76228427,107270.0,107260.0,0.2533516]
[1751125047492,0.61276427,107270.0,107260.0,0.2533516]
[1751125048132,0.42631886,107270.0,107260.0,0.2533516]
[1751125048338,0.42631886,107270.0,107260.0,0.26267421]
[1751125050250,0.42631886,107270.0,107260.0,0.27199674]
[1751125050701,0.42631886,107270.0,107260.0,0.2533516]
[1751125050900,0.42631886,107270.0,107260.0,0.2626743]
[1751125051130,0.42631886,107270.0,107260.0,0.2533516]
[1751125051344,0.61276427,107270.0,107260.0,0.2533516]
[1751125051557,0.61276427,107270.0,107260.0,0.24402881]
[1751125051777,0.40991886,107270.0,107260.0,0.25335142]
[1751125051987,0.03484393,107270.0,107260.0,0.26267395]
[1751125052201,0.04416602,107270.0,107260.0,0.26267395]
[1751125054109,0.04416602,107270.0,107260.0,0.22375395]
[1751125054338,0.04516602,107270.0,107260.0,0.26167395]
[1751125054940,0.41091877,107270.0,107260.0,0.26167395]
[1751125055815,0.39471877,107270.0,107260.0,0.26167395]
[1751125056231,0.38539668,107270.0,107260.0,0.26167395]
[1751125061608,0.01964393,107270.0,107260.0,0.26167395]
[1751125070666,0.01964367,107270.0,107260.0,0.26167395]
[1751125071248,0.01964349,107270.0,107260.0,0.26167395]
[1751125071448,0.0289655,107270.0,107260.0,0.26167395]
[1751125073232,0.39471825,107270.0,107260.0,0.26167395]
[1751125074873,0.38539624,107270.0,107260.0,0.26167395]
[1751125075702,0.39471825,107270.0,107260.0,0.26167395]
[1751125075906,0.0289655,107270.0,107260.0,0.26167395]
[1751125077937,0.01964349,107270.0,107260.0,0.26167395]
[1751125078371,0.01964349,107270.0,107260.0,0.6274267]
[1751125078582,0.02896541,107270.0,107260.0,0.6274267]
[1751125079194,0.02896541,107270.0,107260.0,0.26167395]
[1751125079394,0.0382875,107270.0,107260.0,0.6274267]
[1751125079597,0.0382875,107270.0,107260.0,0.26167395]
[1751125079799,0.02896541,107270.0,107260.0,0.26167395]
[1751125081683,0.0382875,107270.0,107260.0,0.26167395]
[1751125081896,0.02896541,107270.0,107260.0,0.26167395]
[1751125082036,0.0382875,107270.0,107260.0,0.26167395]
[1751125082454,0.02896541,107270.0,107260.0,0.26167395]
[1751125083486,0.0382875,107270.0,107260.0,0.26167395]
[1751125084104,0.03828742,107270.0,107260.0,0.26167395]
[1751125084741,0.04760951,107270.0,107260.0,0.26167395]
[1751125085391,0.03828742,107270.0,107260.0,0.26167395]
[1751125086204,0.04760951,107270.0,107260.0,0.26167395]
[1751125087374,0.06390951,107270.0,107260.0,0.26167395]
[1751125088642,0.06391003,107270.0,107260.0,0.26167395]
[1751125089242,0.05458785,107270.0,107260.0,0.26167395]
[1751125092286,0.04526576,107270.0,107260.0,0.26167395]
[1751125093393,0.05458785,107270.0,107260.0,0.26167395]
[1751125095254,0.04526576,107270.0,107260.0,0.26167395]
[1751125099995,0.03594375,107270.0,107260.0,0.26167395]
[1751125100216,0.01964375,107270.0,107260.0,0.26167395]
[1751125100660,0.01964375,107270.0,107260.0,0.6274267]
[1751125102678,0.02896576,107270.0,107260.0,0.26167395]
[1751125102900,0.02896576,107270.0,107260.0,0.6274267]
[1751125103348,0.01964375,107270.0,107260.0,0.6274267]
[1751125104163,0.02896576,107270.0,107260.0,0.6274267]
[1751125106199,0.01964375,107270.0,107260.0,0.6274267]
[1751125108640,0.0196434,107270.0,107260.0,0.6274267]
[1751125109527,0.0196434,107270.0,107260.0,0.26167395]